[Event "Goldmoney Asian Rapid Prelims 2021"]
[Site "Chess24"]
[Date "2021.06.24"]
[Round "11.3"]
[White "So, Wesley"]
[Black "Erigaisi Arjun"]
[Result "1/2-1/2"]
[ECO "C43"]
[WhiteElo "2770"]
[BlackElo "2567"]
[Annotator "ChessBase"]
[PlyCount "21"]
[EventDate "2021.06.26"]
[EventType "tourn"]
[EventCountry "NET"]
[Tiebreak "Koya+Number of black wins+Number of wins"]
[SourceTitle "playchess.com"]
[Source "ChessBase"]
[SourceQuality "1"]
[TimeControl "900+10"]

1. e4 {[%emt 0:00:00]} e5 {[%emt 0:00:00]} 2. Nf3 {[%emt 0:00:02]} Nf6 {
[%emt 0:00:02]} 3. d4 {[%emt 0:00:01]} Nxe4 {[%emt 0:00:03]} 4. Bd3 {[%emt 0:
00:01]} d5 {[%emt 0:00:02]} 5. Nxe5 {[%emt 0:00:00]} Nd7 {[%emt 0:00:02]} 6.
Nxf7 {[%emt 0:00:01]} Kxf7 {[%emt 0:00:03]} 7. Qh5+ {[%emt 0:00:00]} Ke7 {
[%emt 0:00:02]} 8. Qe2 {[%emt 0:00:01]} Kf7 {[%emt 0:00:03]} 9. Qh5+ {[%emt 0:
00:01]} Ke7 {[%emt 0:00:01]} 10. Qe2 {[%emt 0:00:00]} Kf7 {[%emt 0:00:01]} 11.
Qh5+ {[%emt 0:00:01]} 1/2-1/2